[Event "*** Titled Tuesday Blitz"]
[Site "Chess.com"]
[Date "2019.09.03"]
[Round "2"]
[White "M1711"]
[Black "Alexander_Moskalenko"]
[Result "0-1"]
[WhiteElo "2567"]
[BlackElo "2839"]
[TimeControl "180+2"]
[EndTime "15:23:10 PDT"]
[Termination "Alexander_Moskalenko won by resignation"]

1. d4 {[%clk 0:03:01.9]} 1... d6 {[%clk 0:03:01.9]} 2. e4 {[%clk 0:03:02.2]}
2... Nf6 {[%clk 0:03:02.8]} 3. Nc3 {[%clk 0:03:03.4]} 3... e5 {[%clk 0:03:00.9]}
4. Nf3 {[%clk 0:03:04.2]} 4... Nbd7 {[%clk 0:03:00.6]} 5. Bc4 {[%clk 0:03:05.3]}
5... Be7 {[%clk 0:03:02]} 6. O-O {[%clk 0:03:06.2]} 6... O-O {[%clk 0:03:03.5]}
7. Re1 {[%clk 0:03:00.6]} 7... a6 {[%clk 0:03:04.5]} 8. a4 {[%clk 0:03:00.9]}
8... b6 {[%clk 0:03:06]} 9. Bg5 {[%clk 0:02:58.8]} 9... h6 {[%clk 0:03:05]} 10.
Bh4 {[%clk 0:02:59.1]} 10... Bb7 {[%clk 0:02:49.7]} 11. dxe5 {[%clk 0:02:45.2]}
11... Nxe5 {[%clk 0:02:46.5]} 12. Nxe5 {[%clk 0:02:38.8]} 12... dxe5 {[%clk
0:02:48.4]} 13. Qf3 {[%clk 0:02:39.8]} 13... Nd7 {[%clk 0:02:39.6]} 14. Bg3
{[%clk 0:02:35.6]} 14... Bb4 {[%clk 0:02:27.9]} 15. Red1 {[%clk 0:02:28.2]}
15... Qe7 {[%clk 0:01:40.3]} 16. Nd5 {[%clk 0:02:10.6]} 16... Bxd5 {[%clk
0:01:41]} 17. Bxd5 {[%clk 0:02:12.4]} 17... Rad8 {[%clk 0:01:41]} 18. Qh5 {[%clk
0:01:55.6]} 18... Bd6 {[%clk 0:01:35.5]} 19. Qe2 {[%clk 0:01:47.2]} 19... a5
{[%clk 0:01:35.5]} 20. c3 {[%clk 0:01:44.1]} 20... g6 {[%clk 0:01:28.3]} 21. Bc4
{[%clk 0:01:39.7]} 21... Kg7 {[%clk 0:01:28.7]} 22. Rd2 {[%clk 0:01:30.1]} 22...
h5 {[%clk 0:01:28.9]} 23. h3 {[%clk 0:01:28.1]} 23... h4 {[%clk 0:01:20.9]} 24.
Bh2 {[%clk 0:01:29]} 24... Nf6 {[%clk 0:01:18.7]} 25. Rad1 {[%clk 0:01:18.3]}
25... Nh5 {[%clk 0:01:19.6]} 26. Qg4 {[%clk 0:01:14.1]} 26... Nf4 {[%clk
0:01:12.4]} 27. Qf3 {[%clk 0:00:34.2]} 27... Qf6 {[%clk 0:01:05.7]} 28. Qg4
{[%clk 0:00:33.7]} 28... Rfe8 {[%clk 0:00:43.4]} 29. Bb3 {[%clk 0:00:29.3]}
29... Re7 {[%clk 0:00:43.3]} 30. Bc4 {[%clk 0:00:25.9]} 30... Rh8 {[%clk
0:00:44.5]} 31. Qf3 {[%clk 0:00:20.3]} 31... Rh5 {[%clk 0:00:45]} 32. Kh1 {[%clk
0:00:20.5]} 32... Rg5 {[%clk 0:00:42.6]} 33. Bxf4 {[%clk 0:00:21.5]} 33... exf4
{[%clk 0:00:37.1]} 34. Rd5 {[%clk 0:00:22.8]} 34... Rge5 {[%clk 0:00:37.7]} 35.
Rxe5 {[%clk 0:00:21.5]} 35... Qxe5 {[%clk 0:00:39.6]} 36. Rd5 {[%clk 0:00:22]}
36... Qxe4 {[%clk 0:00:39.6]} 37. Qxe4 {[%clk 0:00:13.6]} 37... Rxe4 {[%clk
0:00:41.5]} 38. Bb3 {[%clk 0:00:14.4]} 38... Re1+ {[%clk 0:00:40.2]} 39. Kh2
{[%clk 0:00:15.5]} 39... f3+ {[%clk 0:00:41.6]} 40. g3 {[%clk 0:00:17]} 40...
hxg3+ {[%clk 0:00:41.3]} 41. fxg3 {[%clk 0:00:18.9]} 41... f2 {[%clk 0:00:42.6]}
42. Bc4 {[%clk 0:00:20.8]} 42... f1=Q {[%clk 0:00:42.3]} 43. Bxf1 {[%clk
0:00:22.7]} 43... Rxf1 {[%clk 0:00:43.2]} 44. Kg2 {[%clk 0:00:24.6]} 44... Ra1
{[%clk 0:00:42.6]} 45. Rxd6 {[%clk 0:00:26.5]} 45... cxd6 {[%clk 0:00:42.5]} 0-1

[Event "*** Titled Tuesday Blitz"]
[Site "Chess.com"]
[Date "2019.09.03"]
[Round "2"]
[White "LastHeroJr"]
[Black "johnathan113"]
[Result "0-1"]
[WhiteElo "2528"]
[BlackElo "2766"]
[TimeControl "180+2"]
[EndTime "15:23:12 PDT"]
[Termination "johnathan113 won by resignation"]

1. e4 {[%clk 0:03:01.9]} 1... c6 {[%clk 0:02:59.4]} 2. d4 {[%clk 0:03:01.8]}
2... d5 {[%clk 0:03:01]} 3. e5 {[%clk 0:03:03]} 3... Bf5 {[%clk 0:03:01.5]} 4.
Nf3 {[%clk 0:03:04.1]} 4... e6 {[%clk 0:03:02.7]} 5. Be2 {[%clk 0:03:05.3]} 5...
Nd7 {[%clk 0:02:58.9]} 6. O-O {[%clk 0:03:03.3]} 6... h5 {[%clk 0:02:59.9]} 7.
a4 {[%clk 0:02:57.4]} 7... Be7 {[%clk 0:02:55.7]} 8. a5 {[%clk 0:02:58.3]} 8...
g5 {[%clk 0:02:53.2]} 9. Ne1 {[%clk 0:02:58.8]} 9... g4 {[%clk 0:02:48.9]} 10.
Bd3 {[%clk 0:02:53.8]} 10... Nh6 {[%clk 0:02:49.3]} 11. c3 {[%clk 0:02:37]}
11... h4 {[%clk 0:02:34.5]} 12. Bf4 {[%clk 0:02:34.7]} 12... Bg5 {[%clk
0:02:19.8]} 13. Qc1 {[%clk 0:02:35.4]} 13... Rg8 {[%clk 0:02:03.4]} 14. b4
{[%clk 0:02:20.8]} 14... f6 {[%clk 0:01:57]} 15. Bxg5 {[%clk 0:02:12.1]} 15...
Rxg5 {[%clk 0:01:55.9]} 16. f4 {[%clk 0:01:48.2]} 16... gxf3 {[%clk 0:01:50.3]}
17. Rxf3 {[%clk 0:01:12]} 17... fxe5 {[%clk 0:01:50.1]} 18. Bxf5 {[%clk
0:00:35.6]} 18... Nxf5 {[%clk 0:01:49.2]} 19. dxe5 {[%clk 0:00:36.4]} 19... Nxe5
{[%clk 0:01:48.5]} 20. Rf2 {[%clk 0:00:37.8]} 20... Qf6 {[%clk 0:01:40.5]} 21.
Nd2 {[%clk 0:00:37.1]} 21... O-O-O {[%clk 0:01:12.5]} 22. a6 {[%clk 0:00:38.2]}
22... b6 {[%clk 0:01:10.9]} 23. Ndf3 {[%clk 0:00:39.3]} 23... Rg4 {[%clk
0:01:06.2]} 24. Nxe5 {[%clk 0:00:35.2]} 24... Qxe5 {[%clk 0:01:08.1]} 25. Nf3
{[%clk 0:00:36.7]} 25... Qg7 {[%clk 0:01:05.5]} 26. Qe1 {[%clk 0:00:31.3]} 26...
Re4 {[%clk 0:01:06.3]} 27. Qd2 {[%clk 0:00:24]} 27... Rg8 {[%clk 0:01:06.9]} 28.
Ra2 {[%clk 0:00:22.3]} 28... h3 {[%clk 0:00:56.2]} 29. Kh1 {[%clk 0:00:19.4]}
29... Qg4 {[%clk 0:00:37.3]} 30. Ng1 {[%clk 0:00:10.4]} 30... hxg2+ {[%clk
0:00:24.2]} 31. Rxg2 {[%clk 0:00:12.3]} 31... Qxg2+ {[%clk 0:00:25.8]} 32. Qxg2
{[%clk 0:00:13.9]} 32... Rxg2 {[%clk 0:00:27.6]} 33. Kxg2 {[%clk 0:00:15.8]}
33... Re3 {[%clk 0:00:26.1]} 34. Ne2 {[%clk 0:00:17.2]} 34... Nh4+ {[%clk
0:00:21.5]} 35. Kf2 {[%clk 0:00:17.3]} 35... Rf3+ {[%clk 0:00:23]} 36. Ke1
{[%clk 0:00:18.5]} 36... e5 {[%clk 0:00:24.3]} 37. Rd2 {[%clk 0:00:18.8]} 37...
Kc7 {[%clk 0:00:25]} 38. b5 {[%clk 0:00:19.9]} 38... Rh3 {[%clk 0:00:23.4]} 39.
bxc6 {[%clk 0:00:20.8]} 39... Nf3+ {[%clk 0:00:24.3]} 0-1

[Event "*** Titled Tuesday Blitz"]
[Site "Chess.com"]
[Date "2019.09.03"]
[Round "2"]
[White "Gordima"]
[Black "harvsp123"]
[Result "1-0"]
[WhiteElo "2804"]
[BlackElo "2551"]
[TimeControl "180+2"]
[EndTime "15:23:13 PDT"]
[Termination "Gordima won by resignation"]

1. Nf3 {[%clk 0:02:57.3]} 1... Nf6 {[%clk 0:03:01.3]} 2. c4 {[%clk 0:02:58.3]}
2... g6 {[%clk 0:03:01.3]} 3. Nc3 {[%clk 0:02:59.2]} 3... Bg7 {[%clk 0:03:02.4]}
4. e4 {[%clk 0:03:00.5]} 4... d6 {[%clk 0:03:03.5]} 5. d4 {[%clk 0:03:02]} 5...
O-O {[%clk 0:03:04.6]} 6. h3 {[%clk 0:03:03.6]} 6... e5 {[%clk 0:03:05.3]} 7. d5
{[%clk 0:03:04.4]} 7... Nh5 {[%clk 0:03:06.5]} 8. g3 {[%clk 0:03:05.5]} 8... Na6
{[%clk 0:03:06.2]} 9. Be3 {[%clk 0:03:04.5]} 9... Qe8 {[%clk 0:03:06.3]} 10. Be2
{[%clk 0:02:57.8]} 10... f5 {[%clk 0:02:57.5]} 11. exf5 {[%clk 0:02:58.8]} 11...
gxf5 {[%clk 0:02:58.4]} 12. Qd2 {[%clk 0:02:58.9]} 12... f4 {[%clk 0:02:44.8]}
13. gxf4 {[%clk 0:02:58.3]} 13... Nxf4 {[%clk 0:02:44.1]} 14. Rg1 {[%clk
0:02:28.7]} 14... Bxh3 {[%clk 0:02:01.5]} 15. Ng5 {[%clk 0:02:14.1]} 15... Bf5
{[%clk 0:01:57.3]} 16. O-O-O {[%clk 0:02:02.4]} 16... Kh8 {[%clk 0:01:13.4]} 17.
Bxf4 {[%clk 0:02:00.6]} 17... exf4 {[%clk 0:01:14.3]} 18. Bd3 {[%clk 0:02:02.3]}
18... Nc5 {[%clk 0:01:02.7]} 19. Bxf5 {[%clk 0:01:59.3]} 19... Rxf5 {[%clk
0:01:03]} 20. Qc2 {[%clk 0:01:50.2]} 20... Qe5 {[%clk 0:00:37.4]} 21. Nf3 {[%clk
0:01:21.6]} 21... Qf6 {[%clk 0:00:37.6]} 22. Rg4 {[%clk 0:01:21]} 22... Rh5
{[%clk 0:00:30.1]} 23. Rdg1 {[%clk 0:01:20.7]} 23... Bh6 {[%clk 0:00:20.8]} 24.
Qe2 {[%clk 0:01:13.4]} 24... Qf7 {[%clk 0:00:19.1]} 25. Qd2 {[%clk 0:00:55.5]}
25... Re8 {[%clk 0:00:20.3]} 26. Qd4+ {[%clk 0:00:56.1]} 26... Rhe5 {[%clk
0:00:18.4]} 27. Nxe5 {[%clk 0:00:57.4]} 27... Rxe5 {[%clk 0:00:07]} 28. f3
{[%clk 0:00:49.9]} 28... a5 {[%clk 0:00:07.2]} 29. Nb5 {[%clk 0:00:45.6]} 29...
Nd7 {[%clk 0:00:08]} 30. Rg8+ {[%clk 0:00:42.6]} 30... Qxg8 {[%clk 0:00:09]} 31.
Rxg8+ {[%clk 0:00:44.5]} 31... Kxg8 {[%clk 0:00:10.9]} 32. Nxc7 {[%clk
0:00:46.3]} 32... Bg7 {[%clk 0:00:12.4]} 33. Qa7 {[%clk 0:00:46.4]} 33... Re1+
{[%clk 0:00:13.4]} 34. Kd2 {[%clk 0:00:47.6]} 34... Re3 {[%clk 0:00:14.6]} 35.
Qxb7 {[%clk 0:00:45.1]} 35... Ne5 {[%clk 0:00:15.6]} 36. Qc8+ {[%clk 0:00:45.3]}
36... Bf8 {[%clk 0:00:16.7]} 37. Qe6+ {[%clk 0:00:44.3]} 37... Kh8 {[%clk
0:00:18.1]} 38. Qf6+ {[%clk 0:00:44.6]} 38... Kg8 {[%clk 0:00:19.4]} 39. Ne6
{[%clk 0:00:39.3]} 39... Nxf3+ {[%clk 0:00:10.5]} 40. Kc2 {[%clk 0:00:40.6]}
40... Re2+ {[%clk 0:00:10]} 41. Kb3 {[%clk 0:00:42]} 41... Nd2+ {[%clk
0:00:09.4]} 42. Ka4 {[%clk 0:00:43.2]} 42... Rxe6 {[%clk 0:00:06.3]} 43. dxe6
{[%clk 0:00:44.6]} 43... f3 {[%clk 0:00:07.4]} 44. Qf7+ {[%clk 0:00:45.9]} 1-0

[Event "*** Titled Tuesday Blitz"]
[Site "Chess.com"]
[Date "2019.09.03"]
[Round "2"]
[White "Sanan_Sjugirov"]
[Black "Vasily_Papin"]
[Result "1-0"]
[WhiteElo "2860"]
[BlackElo "2552"]
[TimeControl "180+2"]
[EndTime "15:23:15 PDT"]
[Termination "Sanan_Sjugirov won by resignation"]

1. e4 {[%clk 0:03:01.9]} 1... c5 {[%clk 0:03:00.7]} 2. Nf3 {[%clk 0:03:02.2]}
2... e6 {[%clk 0:03:02]} 3. d4 {[%clk 0:03:01.8]} 3... cxd4 {[%clk 0:03:03.9]}
4. Nxd4 {[%clk 0:03:03.5]} 4... a6 {[%clk 0:03:05.3]} 5. Bd3 {[%clk 0:02:54.3]}
5... Qb6 {[%clk 0:03:05.8]} 6. Nb3 {[%clk 0:02:48.7]} 6... Qc7 {[%clk
0:03:06.6]} 7. O-O {[%clk 0:02:47.2]} 7... d6 {[%clk 0:03:07.9]} 8. f4 {[%clk
0:02:43.6]} 8... Nd7 {[%clk 0:03:03.9]} 9. c4 {[%clk 0:02:32.7]} 9... Ngf6
{[%clk 0:03:04.8]} 10. Nc3 {[%clk 0:02:32.6]} 10... Be7 {[%clk 0:03:03.8]} 11.
Be3 {[%clk 0:02:22.3]} 11... b6 {[%clk 0:03:04.5]} 12. a4 {[%clk 0:01:57.6]}
12... Rb8 {[%clk 0:02:59.8]} 13. Kh1 {[%clk 0:01:49.9]} 13... Nc5 {[%clk
0:02:52.4]} 14. e5 {[%clk 0:01:34.7]} 14... Nfd7 {[%clk 0:02:46.3]} 15. Nxc5
{[%clk 0:01:25.3]} 15... bxc5 {[%clk 0:02:22.7]} 16. exd6 {[%clk 0:01:25.2]}
16... Bxd6 {[%clk 0:02:12.4]} 17. Ne4 {[%clk 0:01:16.7]} 17... Be7 {[%clk
0:02:11.6]} 18. f5 {[%clk 0:01:14]} 18... e5 {[%clk 0:02:08.5]} 19. Qg4 {[%clk
0:01:07.3]} 19... Kf8 {[%clk 0:02:00.7]} 20. Qe2 {[%clk 0:01:01.4]} 20... Nf6
{[%clk 0:01:29.6]} 21. Nc3 {[%clk 0:00:54.9]} 21... Bb7 {[%clk 0:01:27.5]} 22.
Bg5 {[%clk 0:00:54.7]} 22... e4 {[%clk 0:00:58.3]} 23. Bc2 {[%clk 0:00:51.4]}
23... Ba8 {[%clk 0:00:52.1]} 24. b3 {[%clk 0:00:46.9]} 24... h6 {[%clk
0:00:52.4]} 25. Bh4 {[%clk 0:00:44.7]} 25... Re8 {[%clk 0:00:50.8]} 26. Rae1
{[%clk 0:00:37.4]} 26... Bd6 {[%clk 0:00:51.8]} 27. Bxf6 {[%clk 0:00:36.6]}
27... gxf6 {[%clk 0:00:53.1]} 28. Bxe4 {[%clk 0:00:25.4]} 28... Bxh2 {[%clk
0:00:48.3]} 29. Qf3 {[%clk 0:00:25.7]} 29... Bxe4 {[%clk 0:00:34.5]} 30. Rxe4
{[%clk 0:00:26.5]} 30... Be5 {[%clk 0:00:35.4]} 31. Nd5 {[%clk 0:00:27.1]} 31...
Qa5 {[%clk 0:00:35.4]} 32. Rfe1 {[%clk 0:00:25.3]} 32... Rb8 {[%clk 0:00:23.5]}
33. Qe3 {[%clk 0:00:24.2]} 33... Bd4 {[%clk 0:00:19.6]} 34. Qg3 {[%clk
0:00:23.5]} 34... Rd8 {[%clk 0:00:19.8]} 35. Re7 {[%clk 0:00:13]} 35... Qd2
{[%clk 0:00:19.6]} 36. Rxf7+ {[%clk 0:00:13.2]} 36... Kxf7 {[%clk 0:00:20.8]}
37. Re7+ {[%clk 0:00:14.8]} 1-0

[Event "*** Titled Tuesday Blitz"]
[Site "Chess.com"]
[Date "2019.09.03"]
[Round "2"]
[White "JakeCarlosBanawa"]
[Black "Kimster98"]
[Result "0-1"]
[WhiteElo "2304"]
[BlackElo "2624"]
[TimeControl "180+2"]
[EndTime "15:23:20 PDT"]
[Termination "Kimster98 won on time"]

1. d4 {[%clk 0:03:01.9]} 1... d5 {[%clk 0:03:00.3]} 2. c4 {[%clk 0:03:02.2]}
2... e6 {[%clk 0:03:01.7]} 3. Nc3 {[%clk 0:03:02.9]} 3... Bb4 {[%clk 0:03:02.5]}
4. Nf3 {[%clk 0:02:53.6]} 4... Nf6 {[%clk 0:03:02.6]} 5. Bg5 {[%clk 0:02:47.4]}
5... h6 {[%clk 0:03:02.2]} 6. Bh4 {[%clk 0:02:48]} 6... dxc4 {[%clk 0:02:59.2]}
7. e3 {[%clk 0:02:20.1]} 7... b5 {[%clk 0:02:58.5]} 8. a4 {[%clk 0:02:13.1]}
8... c6 {[%clk 0:02:59.1]} 9. Ne5 {[%clk 0:02:07.8]} 9... Bb7 {[%clk 0:02:57.4]}
10. Be2 {[%clk 0:01:58.4]} 10... Nbd7 {[%clk 0:02:51.5]} 11. f4 {[%clk
0:01:53.9]} 11... a6 {[%clk 0:02:50.2]} 12. Bf3 {[%clk 0:01:48.1]} 12... Qc7
{[%clk 0:02:48.8]} 13. O-O {[%clk 0:01:46.4]} 13... O-O {[%clk 0:02:49]} 14. g4
{[%clk 0:01:29.8]} 14... c5 {[%clk 0:02:24.3]} 15. g5 {[%clk 0:01:24]} 15...
hxg5 {[%clk 0:02:21.8]} 16. fxg5 {[%clk 0:01:23.5]} 16... Nd5 {[%clk 0:02:19.7]}
17. Nxd5 {[%clk 0:01:10.2]} 17... Bxd5 {[%clk 0:01:56.9]} 18. Bg3 {[%clk
0:01:10.9]} 18... Nxe5 {[%clk 0:01:52.2]} 19. Bxe5 {[%clk 0:01:12.8]} 19... Qe7
{[%clk 0:01:50.5]} 20. Bxd5 {[%clk 0:01:08.9]} 20... exd5 {[%clk 0:01:48.9]} 21.
Qg4 {[%clk 0:01:08]} 21... Qe6 {[%clk 0:01:47.8]} 22. Qg3 {[%clk 0:00:57.7]}
22... cxd4 {[%clk 0:01:43.2]} 23. exd4 {[%clk 0:00:34.7]} 23... Rfd8 {[%clk
0:00:49.3]} 24. Rf3 {[%clk 0:00:18.2]} 24... Bd6 {[%clk 0:00:44.1]} 25. Raf1
{[%clk 0:00:16.8]} 25... Bxe5 {[%clk 0:00:42.5]} 26. dxe5 {[%clk 0:00:18.7]}
26... Rd7 {[%clk 0:00:39.3]} 27. Qh4 {[%clk 0:00:16.1]} 27... Re8 {[%clk
0:00:17.1]} 28. Rh3 {[%clk 0:00:17.1]} 28... Kf8 {[%clk 0:00:18.3]} 29. Qh8+
{[%clk 0:00:12.4]} 29... Ke7 {[%clk 0:00:19.5]} 30. Qxg7 {[%clk 0:00:13.8]}
30... Kd8 {[%clk 0:00:20.5]} 31. Rh6 {[%clk 0:00:13.2]} 31... Qxe5 {[%clk
0:00:20.2]} 32. Qxe5 {[%clk 0:00:08.9]} 32... Rxe5 {[%clk 0:00:22.1]} 33. h4
{[%clk 0:00:09.6]} 33... d4 {[%clk 0:00:18]} 34. Rxa6 {[%clk 0:00:09.6]} 34...
b4 {[%clk 0:00:18.5]} 35. Rc6 {[%clk 0:00:08.2]} 35... c3 {[%clk 0:00:19.5]} 36.
bxc3 {[%clk 0:00:09.2]} 36... bxc3 {[%clk 0:00:20.3]} 37. Rc4 {[%clk 0:00:04.7]}
37... d3 {[%clk 0:00:14]} 0-1

[Event "*** Titled Tuesday Blitz"]
[Site "Chess.com"]
[Date "2019.09.03"]
[Round "2"]
[White "daro94"]
[Black "vinniethepooh"]
[Result "1-0"]
[WhiteElo "2880"]
[BlackElo "2591"]
[TimeControl "180+2"]
[EndTime "15:23:27 PDT"]
[Termination "daro94 won on time"]

1. d4 {[%clk 0:02:58.7]} 1... d5 {[%clk 0:02:59.7]} 2. c4 {[%clk 0:02:59.4]}
2... c6 {[%clk 0:03:01]} 3. Nf3 {[%clk 0:03:00.5]} 3... Nf6 {[%clk 0:03:02.4]}
4. Nbd2 {[%clk 0:03:02]} 4... g6 {[%clk 0:02:32.2]} 5. e3 {[%clk 0:02:57.6]}
5... Bg7 {[%clk 0:02:33.7]} 6. Be2 {[%clk 0:02:58.8]} 6... O-O {[%clk
0:02:34.4]} 7. O-O {[%clk 0:03:00.1]} 7... a6 {[%clk 0:02:33.2]} 8. b3 {[%clk
0:02:58.7]} 8... Bf5 {[%clk 0:02:28.1]} 9. Bb2 {[%clk 0:02:59.2]} 9... Nbd7
{[%clk 0:02:16.2]} 10. Rc1 {[%clk 0:02:53.8]} 10... b5 {[%clk 0:02:11.2]} 11.
cxd5 {[%clk 0:02:41.6]} 11... cxd5 {[%clk 0:02:11.1]} 12. Ne5 {[%clk 0:02:41.8]}
12... Nxe5 {[%clk 0:01:55.8]} 13. dxe5 {[%clk 0:02:42.6]} 13... Ne4 {[%clk
0:01:57.7]} 14. Nxe4 {[%clk 0:02:04.5]} 14... dxe4 {[%clk 0:01:52.8]} 15. Bd4
{[%clk 0:01:53.7]} 15... Qd7 {[%clk 0:01:33.8]} 16. Qc2 {[%clk 0:01:50]} 16...
Rac8 {[%clk 0:01:31.6]} 17. Qb2 {[%clk 0:01:49.8]} 17... Qb7 {[%clk 0:01:25.4]}
18. h3 {[%clk 0:01:26.8]} 18... h5 {[%clk 0:01:20.9]} 19. Rfd1 {[%clk
0:01:25.1]} 19... Rxc1 {[%clk 0:01:18.2]} 20. Rxc1 {[%clk 0:01:25.9]} 20... Rc8
{[%clk 0:01:19.8]} 21. Rxc8+ {[%clk 0:01:19.9]} 21... Qxc8 {[%clk 0:01:21.7]}
22. a4 {[%clk 0:01:20.5]} 22... Qc6 {[%clk 0:00:52.9]} 23. axb5 {[%clk
0:01:18.9]} 23... axb5 {[%clk 0:00:54.8]} 24. Qa3 {[%clk 0:01:08.8]} 24... Qc7
{[%clk 0:00:29.8]} 25. Qa8+ {[%clk 0:01:01.2]} 25... Kh7 {[%clk 0:00:30.6]} 26.
Qd5 {[%clk 0:01:02.4]} 26... b4 {[%clk 0:00:21.1]} 27. Qxf7 {[%clk 0:00:52.8]}
27... Qc1+ {[%clk 0:00:04.3]} 28. Kh2 {[%clk 0:00:45]} 28... Qc7 {[%clk
0:00:04.2]} 29. Bxh5 {[%clk 0:00:29.9]} 29... Kh8 {[%clk 0:00:02.6]} 30. Bxg6
{[%clk 0:00:22.7]} 30... Bxe5+ {[%clk 0:00:03.9]} 31. Bxe5+ {[%clk 0:00:24.1]}
31... Qxe5+ {[%clk 0:00:05.8]} 32. g3 {[%clk 0:00:25.6]} 32... Bxg6 {[%clk
0:00:04.7]} 33. Qxg6 {[%clk 0:00:27.1]} 33... Qb2 {[%clk 0:00:06.3]} 34. Qe8+
{[%clk 0:00:25.3]} 34... Kg7 {[%clk 0:00:06.5]} 35. Qxe7+ {[%clk 0:00:26.7]}
35... Kg8 {[%clk 0:00:05.8]} 36. Qg5+ {[%clk 0:00:23.7]} 36... Kh7 {[%clk
0:00:05.4]} 37. Qf5+ {[%clk 0:00:23.8]} 37... Kg8 {[%clk 0:00:05.6]} 38. Qe6+
{[%clk 0:00:24.4]} 38... Kg7 {[%clk 0:00:05.2]} 39. Kg2 {[%clk 0:00:26]} 39...
Qc3 {[%clk 0:00:03.5]} 40. h4 {[%clk 0:00:23.9]} 1-0

[Event "*** Titled Tuesday Blitz"]
[Site "Chess.com"]
[Date "2019.09.03"]
[Round "2"]
[White "SantoBlue"]
[Black "Chigorinetz"]
[Result "0-1"]
[WhiteElo "2830"]
[BlackElo "2585"]
[TimeControl "180+2"]
[EndTime "15:23:32 PDT"]
[Termination "Chigorinetz won by resignation"]

1. e4 {[%clk 0:03:01.9]} 1... c5 {[%clk 0:02:37.1]} 2. Nc3 {[%clk 0:02:59.4]}
2... Nc6 {[%clk 0:02:38.1]} 3. Bb5 {[%clk 0:02:54.6]} 3... Nd4 {[%clk
0:02:34.8]} 4. Nf3 {[%clk 0:02:55]} 4... e6 {[%clk 0:02:33.5]} 5. O-O {[%clk
0:02:52.1]} 5... a6 {[%clk 0:02:33.7]} 6. Bd3 {[%clk 0:02:51.7]} 6... Ne7 {[%clk
0:02:31.4]} 7. Nxd4 {[%clk 0:02:51.6]} 7... cxd4 {[%clk 0:02:31.6]} 8. Ne2
{[%clk 0:02:53.2]} 8... Nc6 {[%clk 0:02:32.6]} 9. c3 {[%clk 0:02:53]} 9... Bc5
{[%clk 0:02:32.3]} 10. b4 {[%clk 0:02:53.7]} 10... Bb6 {[%clk 0:02:27.4]} 11.
Bb2 {[%clk 0:02:54.4]} 11... dxc3 {[%clk 0:02:27.3]} 12. Bxc3 {[%clk 0:02:55.5]}
12... O-O {[%clk 0:02:26.6]} 13. Ng3 {[%clk 0:02:56.1]} 13... d5 {[%clk
0:02:23.3]} 14. exd5 {[%clk 0:02:11.4]} 14... Qxd5 {[%clk 0:02:23.3]} 15. Be4
{[%clk 0:02:08.7]} 15... Qg5 {[%clk 0:02:18.7]} 16. Kh1 {[%clk 0:02:09.7]} 16...
e5 {[%clk 0:02:16.9]} 17. f4 {[%clk 0:01:52.3]} 17... exf4 {[%clk 0:02:16.7]}
18. Qh5 {[%clk 0:01:52.7]} 18... h6 {[%clk 0:02:10.4]} 19. Qxg5 {[%clk
0:01:50.2]} 19... hxg5 {[%clk 0:02:10.9]} 20. Nh5 {[%clk 0:01:43.8]} 20... Nd4
{[%clk 0:02:07.8]} 21. h3 {[%clk 0:01:20.3]} 21... Rb8 {[%clk 0:02:07.7]} 22.
Rae1 {[%clk 0:01:16.9]} 22... Be6 {[%clk 0:02:08]} 23. a4 {[%clk 0:01:15.6]}
23... Rfd8 {[%clk 0:02:07.6]} 24. a5 {[%clk 0:01:16.9]} 24... Bc7 {[%clk
0:02:05.5]} 25. Bb1 {[%clk 0:01:13.8]} 25... b6 {[%clk 0:02:02.9]} 26. Nxg7
{[%clk 0:01:10]} 26... Bc4 {[%clk 0:01:49.7]} 27. Rf2 {[%clk 0:01:04.2]} 27...
bxa5 {[%clk 0:01:50.3]} 28. Re4 {[%clk 0:00:24.6]} 28... Rxb4 {[%clk 0:01:49.2]}
29. Bxb4 {[%clk 0:00:22.7]} 29... axb4 {[%clk 0:01:49.9]} 30. Ne8 {[%clk
0:00:22.7]} 30... Bb6 {[%clk 0:01:45.9]} 31. h4 {[%clk 0:00:23.1]} 31... Kf8
{[%clk 0:01:43.6]} 32. Nf6 {[%clk 0:00:21.2]} 32... Ne6 {[%clk 0:01:43.1]} 33.
Rf3 {[%clk 0:00:20]} 33... Bb5 {[%clk 0:01:41.2]} 34. Ba2 {[%clk 0:00:11.6]}
34... Nd4 {[%clk 0:01:22]} 35. Rh3 {[%clk 0:00:09.4]} 35... Bc6 {[%clk
0:01:17.7]} 36. Re1 {[%clk 0:00:08.8]} 36... g4 {[%clk 0:01:15.2]} 37. Nxg4
{[%clk 0:00:09.4]} 37... f3 {[%clk 0:01:17.1]} 38. Ne5 {[%clk 0:00:06.6]} 38...
fxg2+ {[%clk 0:01:16.5]} 39. Kh2 {[%clk 0:00:08.2]} 39... Bb7 {[%clk 0:01:13.9]}
40. Nxf7 {[%clk 0:00:07.6]} 40... Re8 {[%clk 0:01:06.1]} 41. Ne5 {[%clk
0:00:06.7]} 41... Rxe5 {[%clk 0:01:05.5]} 42. Rxe5 {[%clk 0:00:08.2]} 42... Bc7
{[%clk 0:00:59.4]} 43. Re3 {[%clk 0:00:03.9]} 43... Bxe5+ {[%clk 0:00:58.2]} 0-1